bitfinex-derivatives/quotes_SOLF0:USTF0_20250904
["timestamp","ask_amount","ask_price","bid_price","bid_amount"]
[1756946894956,7.48,211.11,211.04,2.42670141]
[1756946895853,4.262,211.09,211.04,2.42670141]
[1756946896551,4.262,211.09,211.05,4.76]
[1756946896854,11.742,211.09,211.04,2.42670141]
[1756946897052,11.742,211.09,211.05,4.76]
[1756946897854,7.48,211.11,211.07,2.42670141]
[1756946898055,7.48,211.11,211.08,4.76]
[1756946899054,4.2616,211.12,211.1,7.18670141]
[1756946899553,7.48,211.14,211.1,7.18670141]
[1756946900852,4.261,211.15,211.1,7.18670141]
[1756946901059,7.48,211.14,211.1,7.18670141]
[1756946901261,4.261,211.15,211.1,7.18670141]
[1756946901852,11.741,211.15,211.1,2.42670141]
[1756946902059,7.48,211.15,211.06,3.28]
[1756946902364,7.48,211.15,211.09,2.42670141]
[1756946902760,4.261,211.14,211.09,2.42670141]
[1756946903163,7.48,211.13,211.09,2.42670141]
[1756946904455,4.261,211.14,211.09,2.42670141]
[1756946905061,7.48,211.13,211.09,2.42670141]
[1756946905259,4.2614,211.12,210.96,6.40576517]
[1756946905463,11.7414,211.12,211.06,2.42670141]
[1756946909961,115.76,211.25,210.95,4.76]
[1756946910168,7.48,211.17,211.02,2.42670141]
[1756946910365,7.48,211.15,211.02,2.42670141]
[1756946911067,7.48,211.15,211.05,2.42670141]
[1756946911864,4.2619,211.1,211.05,2.42670141]
[1756946912068,7.48,211.09,211.05,2.42670141]
[1756946912269,4.2619,211.1,211.05,2.42670141]
[1756946912570,7.48,211.09,211.05,2.42670141]
[1756946913169,4.2619,211.1,211.05,2.42670141]
[1756946913470,7.48,211.08,211.05,2.42670141]
[1756946913770,4.2621,211.09,211.05,2.42670141]
[1756946913966,7.48,211.08,211.05,2.42670141]
[1756946914366,4.2621,211.09,211.05,2.42670141]
[1756946914865,7.48,211.08,211.05,2.42670141]
[1756946915367,4.2621,211.09,211.05,2.42670141]
[1756946915571,7.48,211.08,211.05,2.42670141]
[1756946915965,4.2621,211.09,211.05,2.42670141]
[1756946916170,7.48,211.08,211.05,2.42670141]
[1756946916371,4.2621,211.09,211.05,2.42670141]
[1756946918367,7.48,211.08,211.05,2.42670141]
[1756946918772,4.2621,211.09,211.05,2.42670141]
[1756946919473,11.7423,211.08,211.07,1.55104426]
[1756946920163,7.48,211.1,211.07,1.55104426]
[1756946920365,6.13313022,211.24,210.96,4.3]
[1756946920366,7.48,211.18,211.09,1.55104426]
[1756946920569,7.48,211.18,211.14,1.55104426]
[1756946921770,1.55104426,211.24,211.16,1.55104426]
[1756946921975,7.52,211.23,211.16,1.55104426]
[1756946922475,7.52,211.17,211.16,1.55104426]
[1756946924481,4.2598,211.21,211.16,1.55104426]
[1756946924676,4.2598,211.21,211.14,4.75]
[1756946924677,7.52,211.2,211.19,1.55104426]
[1756946938787,7.52,211.2,211.08,4.75]
[1756946938987,7.52,211.2,211.16,1.55104426]
[1756946939192,7.52,211.24,211.18,1.55104426]
[1756946939693,123.22,211.24,211.18,1.55104426]
[1756946940394,6.85957878,211.25,211.2,1.55104426]
[1756946940395,123.22,211.25,211.2,1.55104426]
[1756946940693,123.28,211.25,211.2,1.55104426]
[1756946941996,11.7796,211.21,211.2,1.55104426]
[1756946945393,4.2592,211.23,211.21,4.75]
[1756946945596,11.7792,211.23,211.22,1.55104426]
[1756946946995,11.7799,211.2,211.1,4.75]
[1756946947194,11.7799,211.2,211.19,1.55104426]
[1756946955103,7.3,211.27,211.2,4.74]
[1756946955306,7.3,211.31,211.24,1.55104426]
[1756946955609,1.55104426,211.29,211.21,1.55104426]
[1756946955806,7.3,211.28,211.21,1.55104426]
[1756946960814,123.32,211.28,211.21,1.55104426]
[1756946961107,116.0,211.28,211.23,1.55104426]
[1756946962210,7.3,211.27,211.23,1.55104426]
[1756946962411,116.0,211.28,211.23,1.55104426]
[1756946962811,7.3,211.27,211.23,1.55104426]
[1756946967720,121.30853452,211.28,211.23,1.55104426]
[1756946968316,7.3,211.27,211.23,1.55104426]
[1756946968517,7.3,211.27,211.2,4.74]
[1756946968721,123.2,211.27,211.22,1.55104426]
[1756946969519,123.2,211.27,211.1,5.27974321]
[1756946969724,7.3,211.25,211.17,1.55104426]
[1756946970722,12.60853452,211.25,211.17,1.55104426]
[1756946971420,12.60853452,211.25,211.14,4.74]
[1756946971614,1.55104426,211.24,211.17,1.55104426]
[1756946971920,7.3,211.23,211.17,1.55104426]
[1756946974122,7.3,211.23,211.14,4.74]
[1756946974323,8.85104426,211.23,211.15,1.55104426]
[1756946975323,7.3,211.23,211.19,1.55104426]
[1756946975523,7.3,211.23,211.21,1.55104426]
[1756946976827,5.30853452,211.26,211.21,1.55104426]
[1756946977324,7.3,211.26,211.21,1.55104426]
[1756946977627,38.88853452,211.27,211.21,1.55104426]
[1756946978125,7.3,211.26,211.21,1.55104426]
[1756946978324,38.88853452,211.27,211.21,1.55104426]
[1756946978520,7.3,211.26,211.21,1.55104426]
[1756946978724,38.88853452,211.27,211.21,1.55104426]
[1756946979229,5.30853452,211.27,211.21,1.55104426]
[1756946979525,7.3,211.26,211.21,1.55104426]
[1756946979729,5.30853452,211.27,211.21,1.55104426]
[1756946979919,7.3,211.26,211.21,1.55104426]
[1756946980126,5.30853452,211.27,211.21,1.55104426]
[1756946981328,7.3,211.26,211.21,1.55104426]
[1756946981523,5.30853452,211.27,211.21,4.74]
[1756946982425,7.86,211.26,211.21,4.74]
[1756946982928,5.30853452,211.27,211.21,4.74]
[1756946983129,7.86,211.26,211.21,4.74]
[1756946983329,5.30853452,211.27,211.21,4.74]
[1756946983530,7.86,211.26,211.21,4.74]
[1756946983833,7.86,211.26,211.18,4.74]
[1756946984529,5.30853452,211.25,211.18,4.74]
[1756946984731,7.86,211.24,211.18,4.74]
[1756946986436,7.86,211.24,211.11,4.74]
[1756946986733,7.86,211.24,211.1,8.0]
[1756946986734,7.86,211.24,211.14,7.16008563]
[1756946986938,7.86,211.24,211.14,2.42008563]
[1756946987237,7.86,211.24,211.15,4.74]
[1756946990336,13.16853452,211.28,211.2,2.42008563]
[1756946990537,7.86,211.28,211.21,4.74]
[1756946998644,7.86,211.28,211.24,4.74]
[1756946999045,7.86,211.31,211.24,4.74]
[1756947001950,7.86,211.31,211.23,2.42008563]
[1756947002151,7.86,211.29,211.17,7.16008563]
[1756947002352,13.16853452,211.29,211.17,7.16008563]
[1756947002848,7.86,211.29,211.17,7.16008563]
[1756947005152,13.16853452,211.29,211.17,7.16008563]
[1756947006353,5.30853452,211.28,211.17,7.16008563]
[1756947006555,7.86,211.27,211.17,7.16008563]
[1756947007054,7.86,211.23,211.11,7.16008563]
[1756947009758,7.86,211.23,211.11,4.74]
[1756947010059,7.86,211.23,211.12,4.74]
[1756947015157,7.86,211.23,211.15,4.75]
[1756947017462,7.86,211.23,211.18,4.75]
[1756947017664,7.86,211.23,211.17,2.42008563]
[1756947018060,7.86,211.23,211.17,7.17008563]
[1756947018261,7.86,211.23,211.17,4.75]
[1756947018565,7.86,211.23,211.17,7.17008563]
[1756947021956,7.86,211.23,211.14,7.17008563]
[1756947023565,7.86,211.23,211.14,2.42008563]
[1756947023766,7.86,211.23,211.17,2.42008563]
[1756947023965,7.86,211.23,211.18,4.75]
[1756947024160,7.86,211.23,211.17,2.42008563]
[1756947024357,7.86,211.23,211.18,4.75]
[1756947024559,7.86,211.23,211.17,7.17008563]
[1756947027169,7.32,211.34,211.21,4.75]
[1756947027462,5.30853452,211.39,211.31,2.42008563]
[1756947027662,7.32,211.41,211.34,2.42008563]
[1756947030164,7.32,211.41,211.32,4.75]
[1756947031169,7.32,211.41,211.31,2.42008563]
[1756947032973,7.32,211.41,211.29,4.72]
[1756947033172,7.32,211.41,211.3,2.42008563]
[1756947035072,7.32,211.41,211.29,4.72]
[1756947035073,7.32,211.41,211.33,2.42008563]
[1756947037777,7.32,211.41,211.34,4.72]
[1756947041072,7.32,211.46,211.37,4.72]
[1756947041272,123.74,211.46,211.37,4.72]
[1756947041472,123.74,211.46,211.4,1.54627994]
[1756947043382,1.54627994,211.5,211.43,1.54627994]
[1756947043575,7.38,211.49,211.43,1.54627994]
[1756947043977,7.38,211.48,211.45,1.54627994]
[1756947044779,117.24,211.5,211.44,1.54627994]
[1756947044979,7.38,211.49,211.44,1.54627994]
[1756947045280,117.24,211.5,211.44,1.54627994]
[1756947045984,7.38,211.48,211.44,1.54627994]
[1756947046185,117.2,211.49,211.44,1.54627994]
[1756947046583,7.38,211.48,211.44,1.54627994]
[1756947046884,117.2,211.49,211.44,1.54627994]
[1756947047686,7.38,211.48,211.44,1.54627994]
[1756947047884,117.2,211.49,211.44,1.54627994]
[1756947048388,7.38,211.48,211.44,1.54627994]
[1756947048583,117.12,211.49,211.44,1.54627994]
[1756947048786,117.1,211.49,211.44,1.54627994]
[1756947049081,7.38,211.57,211.46,1.54627994]
[1756947049282,1.54627994,211.54,211.46,1.54627994]
[1756947049480,7.38,211.53,211.46,1.54627994]
[1756947052592,1.54627994,211.54,211.46,1.54627994]
[1756947052785,7.38,211.53,211.46,1.54627994]
[1756947053289,46.28,211.55,211.5,1.54627994]
[1756947053488,7.38,211.55,211.5,1.54627994]
[1756947053788,0.03083703,211.52,211.5,1.57821251]
[1756947054188,0.03083703,211.52,211.51,4.72]
[1756947058983,0.03083703,211.52,211.51,5.2]
[1756947059183,0.03083703,211.52,211.51,4.72]
[1756947060682,7.38,211.61,211.51,5.2]
[1756947060888,35.72,211.61,211.57,1.54627994]
[1756947061092,7.38,211.61,211.57,6.26627994]
[1756947061489,434.84,211.62,211.57,6.26627994]
[1756947061890,434.84,211.62,211.57,6.30170758]
[1756947062093,7.38,211.61,211.57,6.30170758]
[1756947062291,434.84,211.62,211.57,6.30170758]
[1756947062790,434.84,211.62,211.57,0.03542764]
[1756947064688,7.38,211.61,211.57,0.03542764]
[1756947065995,434.84,211.62,211.57,0.03542764]
[1756947066393,7.38,211.61,211.57,0.03542764]
[1756947066591,434.84,211.62,211.57,0.03542764]
[1756947066795,436.38627994,211.62,211.57,0.03542764]
[1756947067296,7.38,211.61,211.57,0.03542764]
[1756947067799,436.38627994,211.62,211.57,0.03542764]
[1756947067992,7.38,211.61,211.57,0.03542764]
[1756947068185,436.38627994,211.62,211.57,0.03542764]
[1756947068587,7.38,211.61,211.57,0.03542764]
[1756947069395,319.44627994,211.62,211.57,0.03542764]
[1756947069697,7.38,211.59,211.57,0.03542764]
[1756947069895,7.38,211.59,211.46,4.72]
[1756947070198,7.38,211.56,211.5,1.54627994]
[1756947070386,7.38,211.57,211.51,8.99201327]
[1756947070593,7.38,211.57,211.52,1.54627994]
[1756947070794,117.28,211.56,211.52,6.26627994]
[1756947070994,7.38,211.55,211.52,6.26627994]
[1756947071996,124.64,211.55,211.52,4.72]
[1756947072298,124.64,211.55,211.53,4.28295946]
[1756947072499,124.64,211.55,211.52,6.26627994]
[1756947072805,124.62,211.55,211.53,4.28296774]
[1756947073097,124.62,211.55,211.52,6.26627994]
[1756947073298,124.62,211.55,211.53,4.28337725]
[1756947073499,1.54627994,211.58,211.51,1.54627994]
[1756947073802,117.24,211.57,211.52,4.28364337]
[1756947074004,7.33,211.56,211.53,4.28364337]
[1756947074201,7.33,211.56,211.51,1.54627994]
[1756947074502,7.33,211.56,211.52,4.28441822]
[1756947074797,124.51,211.55,211.53,4.28441822]
[1756947075004,7.33,211.55,211.52,4.74]
[1756947075204,124.53,211.55,211.53,4.28504443]
[1756947075501,124.53,211.55,211.52,4.74]
[1756947075701,124.53,211.55,211.53,4.28504117]
[1756947075996,124.53,211.55,211.52,4.74]
[1756947076196,124.49,211.55,211.53,4.28504117]
[1756947076392,124.49,211.55,211.52,4.74]
[1756947076603,124.49,211.55,211.53,4.28621722]
[1756947076798,124.49,211.55,211.52,6.28627994]
[1756947077000,124.49,211.55,211.53,4.28739254]
[1756947077304,124.49,211.55,211.52,1.54627994]
[1756947077502,124.49,211.55,211.53,4.28852912]
[1756947077703,124.49,211.55,211.52,1.54627994]
[1756947077898,117.16,211.55,211.53,4.28852912]
[1756947078204,317.9,211.62,211.54,5.83571837]
[1756947078205,117.1,211.57,211.54,5.83571837]
[1756947078505,117.1,211.57,211.54,1.54627994]
[1756947078695,124.43,211.57,211.54,1.54627994]
[1756947078900,124.43,211.57,211.54,6.28627994]
[1756947080706,124.43,211.57,211.54,1.54627994]
[1756947081103,7.33,211.56,211.55,4.29353406]
[1756947081407,117.1,211.57,211.55,4.29353406]
[1756947081705,7.33,211.56,211.54,1.54627994]
[1756947081905,124.37,211.56,211.55,4.29310761]
[1756947082306,117.02,211.57,211.55,4.29310761]
[1756947082507,124.35,211.57,211.54,6.28627994]
[1756947082699,124.35,211.57,211.55,4.29510078]
[1756947082898,124.35,211.57,211.54,6.28627994]
[1756947083104,124.35,211.57,211.55,4.29526652]
[1756947083306,124.33,211.57,211.54,6.28627994]
[1756947083603,317.9,211.62,211.55,9.03690394]
[1756947083809,124.31,211.61,211.54,1.54627994]
[1756947084008,124.31,211.61,211.55,4.2721119]
[1756947084209,7.33,211.61,211.56,4.27179077]
[1756947084405,7.33,211.61,211.54,1.54627994]
[1756947084406,116.98,211.6,211.54,1.54627994]
[1756947084611,317.9,211.62,211.56,1.54627994]
[1756947084612,116.96,211.59,211.56,1.54627994]
[1756947084810,7.33,211.58,211.56,1.54627994]
[1756947085406,7.33,211.58,211.57,4.27325733]
[1756947085805,116.96,211.59,211.56,1.54627994]
[1756947086206,124.27,211.58,211.57,4.27539609]
[1756947088511,124.19,211.58,211.57,4.27539609]
[1756947091109,124.19,211.58,211.57,3.02579609]
[1756947091309,124.19,211.58,211.57,2.08859609]
[1756947092010,124.19,211.58,211.55,0.03159051]
[1756947092210,116.86,211.58,211.55,0.03159051]
[1756947093417,7.33,211.57,211.55,0.03159051]
[1756947093616,116.86,211.58,211.55,0.03159051]
[1756947094116,7.33,211.57,211.55,0.03159051]
[1756947095019,116.86,211.58,211.55,0.03159051]
[1756947095207,0.03075033,211.6,211.55,0.03159051]
[1756947095412,124.05,211.59,211.55,0.03159051]
[1756947095713,116.72,211.58,211.55,0.03159051]
[1756947097319,7.33,211.57,211.55,0.03159051]
[1756947097520,116.72,211.58,211.55,0.03159051]
[1756947097720,7.33,211.57,211.55,0.03159051]
[1756947097921,116.68,211.56,211.55,0.03159051]
[1756947098614,124.01,211.56,211.55,0.03159051]
[1756947103026,7.33,211.56,211.55,0.03159051]
[1756947103226,123.89,211.56,211.55,0.03159051]
[1756947105032,123.87,211.56,211.55,0.03159051]
[1756947105330,7.33,211.56,211.55,0.03159051]
[1756947105531,123.83,211.56,211.55,0.03159051]
[1756947106332,116.5,211.56,211.55,0.03159051]
[1756947106528,7.5,211.56,211.55,0.03159051]
[1756947107227,124.04,211.56,211.55,0.03159051]
[1756947107431,124.18,211.56,211.55,0.03159051]
[1756947109322,124.14,211.56,211.55,0.03159051]
[1756947112733,7.5,211.56,211.55,0.03159051]
[1756947112937,124.08,211.56,211.55,0.03159051]
[1756947114338,124.04,211.56,211.55,0.03159051]
[1756947114530,124.0,211.56,211.55,0.03159051]
[1756947115136,124.0,211.56,211.47,2.41288485]
[1756947116041,124.0,211.56,211.44,2.41288485]
[1756947116237,0.03558229,211.54,211.44,2.41288485]
[1756947116433,124.06,211.53,211.44,2.41288485]
[1756947117036,124.06,211.53,211.42,4.76]
[1756947117342,124.06,211.53,211.4,2.41288485]
[1756947117742,7.5,211.49,211.4,2.41288485]
[1756947118042,7.5,211.47,211.4,2.41288485]
[1756947118532,0.03368933,211.46,211.4,2.41288485]
[1756947120244,7.5,211.45,211.36,2.41288485]
[1756947120439,7.5,211.43,211.36,7.17288485]
[1756947120936,0.03503685,211.42,211.36,7.17288485]
[1756947122533,7.5,211.41,211.36,2.41288485]
[1756947122735,0.03503685,211.42,211.36,2.41288485]
[1756947122941,7.5,211.41,211.36,2.41288485]
[1756947123238,7.5,211.41,211.33,7.17288485]
[1756947124535,7.5,211.41,211.33,2.41288485]
[1756947126843,7.5,211.41,211.3,2.41288485]
[1756947127041,7.5,211.41,211.29,4.76]
[1756947127241,7.5,211.41,211.27,2.41288485]
[1756947127640,7.5,211.36,211.27,2.41288485]
[1756947127947,7.5,211.34,211.27,2.41288485]
[1756947128243,7.5,211.34,211.28,4.76]
[1756947128443,0.03107903,211.33,211.27,2.41288485]
[1756947128641,0.03107903,211.33,211.28,4.76]
[1756947128840,0.03107903,211.33,211.27,2.41288485]
[1756947130740,0.03107903,211.33,211.28,4.76]
[1756947131140,0.03107903,211.33,211.27,2.41288485]
[1756947131341,0.03107903,211.33,211.28,4.76]
[1756947131542,0.03107903,211.33,211.3,2.41288485]
[1756947132343,0.03107903,211.33,211.31,4.77]
[1756947132738,0.03107903,211.33,211.29,7.18288485]
[1756947132940,0.03107903,211.33,211.3,4.77]
[1756947133148,0.03107903,211.33,211.32,7.18288485]
[1756947134247,2.41288485,211.47,211.32,7.66288485]
[1756947134450,7.74,211.46,211.36,4.77]
[1756947134746,7.74,211.49,211.36,4.77]
[1756947134944,2.41288485,211.5,211.38,2.41288485]
[1756947134945,26.64,211.48,211.38,2.41288485]
[1756947135139,7.74,211.47,211.38,2.41288485]
[1756947135543,0.03454204,211.45,211.38,2.41288485]
[1756947135736,0.03454204,211.45,211.39,4.77]
[1756947135940,0.03454204,211.45,211.41,2.41288485]
[1756947136146,0.03454204,211.45,211.41,7.18288485]
[1756947136347,7.74,211.44,211.41,0.02991612]
[1756947136846,7.74,211.44,211.41,4.79991612]
[1756947137648,0.03454204,211.45,211.41,4.79991612]
[1756947137844,0.03454204,211.45,211.41,0.02991612]
[1756947138245,0.03454204,211.45,211.42,4.77]
[1756947138548,0.03454204,211.45,211.42,2.41288485]
[1756947138749,0.03454204,211.45,211.43,4.77]
[1756947138948,0.03454204,211.45,211.42,2.41288485]
[1756947139339,0.03454204,211.45,211.43,4.77]
[1756947139945,7.74,211.53,211.43,4.77]
[1756947140152,7.74,211.53,211.45,2.41288485]
[1756947140344,7.74,211.53,211.43,4.77]
[1756947140547,7.74,211.53,211.45,2.41288485]
[1756947141047,7.74,211.53,211.47,0.034958]
[1756947141247,317.7,211.55,211.49,4.77]
[1756947143248,7.74,211.54,211.47,0.034958]
[1756947147056,116.76,211.53,211.47,0.034958]
[1756947147349,7.74,211.54,211.47,7.21784285]
[1756947147547,116.74,211.53,211.47,7.21784285]
[1756947148147,117.12,211.53,211.47,7.21784285]
[1756947148943,117.12,211.53,211.47,2.44784285]
[1756947149154,117.12,211.53,211.47,0.034958]
[1756947149544,7.74,211.52,211.47,0.034958]
[1756947149948,117.12,211.53,211.47,0.034958]
[1756947150150,7.74,211.52,211.47,0.034958]
[1756947153360,2.41288485,211.51,211.47,0.034958]
[1756947153560,7.74,211.5,211.47,0.034958]
[1756947157553,8.22,211.5,211.38,2.41288485]
[1756947157854,7.74,211.5,211.39,4.8]
[1756947158061,9.06,211.49,211.39,4.8]
[1756947158261,7.74,211.48,211.39,4.8]
[1756947159759,18.96,211.47,211.39,4.8]
[1756947162169,7.74,211.48,211.39,4.8]
[1756947165571,7.39,211.49,211.43,1.54574499]
[1756947167462,7.39,211.55,211.47,1.54574499]
[1756947167667,7.39,211.55,211.49,1.54574499]
[1756947169368,7.39,211.55,211.51,1.54574499]
[1756947169569,7.39,211.56,211.51,1.54574499]
[1756947169874,1.54574499,211.57,211.51,1.54574499]
[1756947170067,7.39,211.56,211.51,1.54574499]
[1756947170272,1.54574499,211.57,211.51,1.54574499]
[1756947171668,7.39,211.56,211.51,1.54574499]
[1756947171873,1.54574499,211.57,211.51,1.54574499]
[1756947173277,7.39,211.56,211.51,1.54574499]
[1756947173477,1.54574499,211.57,211.51,1.54574499]
[1756947173677,7.39,211.56,211.51,1.54574499]
[1756947173876,1.54574499,211.57,211.51,1.54574499]
[1756947174675,7.39,211.56,211.51,1.54574499]
[1756947175075,1.54574499,211.57,211.51,1.54574499]
[1756947176178,7.39,211.56,211.51,1.54574499]
[1756947176479,1.54574499,211.57,211.51,1.54574499]
[1756947176679,7.39,211.57,211.51,1.54574499]
[1756947176879,8.93574499,211.57,211.51,1.54574499]
[1756947177378,7.39,211.57,211.51,1.54574499]
[1756947178677,7.39,211.57,211.51,6.34574499]
[1756947179579,125.43574499,211.6,211.53,6.34574499]
[1756947180271,125.43574499,211.6,211.53,1.54574499]
[1756947180980,8.93574499,211.6,211.53,1.54574499]
[1756947181181,125.41574499,211.6,211.53,1.54574499]
[1756947181483,7.39,211.57,211.51,1.54574499]
[1756947182179,7.39,211.57,211.5,4.8]
[1756947182373,7.39,211.57,211.5,6.34574499]
[1756947186486,0.0341981,211.56,211.5,6.34574499]
[1756947186689,7.39,211.55,211.51,4.83333089]
[1756947187387,0.0341981,211.56,211.51,4.83333089]
[1756947187977,7.39,211.55,211.51,4.83333089]
[1756947188383,0.0341981,211.56,211.51,4.83333089]
[1756947188584,7.39,211.55,211.51,4.83333089]
[1756947188785,7.39,211.55,211.51,0.03333089]
[1756947189180,0.0341981,211.56,211.51,0.03333089]
[1756947189690,0.0341981,211.56,211.51,4.83333089]
[1756947190882,7.39,211.55,211.51,4.83333089]
[1756947191081,0.0341981,211.56,211.51,4.83333089]
[1756947191687,7.39,211.55,211.51,4.83333089]
[1756947191888,7.82,211.55,211.51,4.83333089]
[1756947192094,0.0341981,211.56,211.51,4.83333089]
[1756947192591,7.82,211.55,211.51,4.83333089]
[1756947194387,0.0341981,211.56,211.52,1.54574499]
[1756947194589,0.0341981,211.56,211.53,4.8]
[1756947194897,7.8541981,211.56,211.53,4.8]
[1756947200497,7.8541981,211.56,211.51,1.57907588]
[1756947200700,7.8541981,211.56,211.52,4.8]
[1756947201397,7.8541981,211.56,211.51,1.57907588]
[1756947201596,7.8541981,211.56,211.52,4.8]
[1756947201894,7.8541981,211.56,211.51,1.57907588]
[1756947202098,7.8541981,211.56,211.52,4.8]
[1756947202295,7.8541981,211.56,211.51,1.57907588]
[1756947202499,7.82,211.55,211.52,4.8]
[1756947203295,7.82,211.55,211.51,1.57907588]
[1756947203495,7.82,211.55,211.52,4.8]
[1756947203902,0.0341981,211.56,211.52,4.8]
[1756947204097,7.82,211.55,211.52,4.8]
[1756947205804,0.0341981,211.56,211.52,4.8]
[1756947206097,7.82,211.55,211.52,4.8]
[1756947211113,0.0341981,211.56,211.52,4.8]
[1756947211308,7.82,211.55,211.52,4.8]
[1756947215400,0.0341981,211.56,211.51,1.57907588]
[1756947216108,7.82,211.55,211.52,4.8]
[1756947216309,0.0341981,211.56,211.52,4.8]
[1756947216509,7.82,211.55,211.52,4.8]
[1756947217007,0.0341981,211.56,211.52,4.8]
[1756947217208,7.82,211.55,211.52,4.8]
[1756947220006,0.0341981,211.56,211.52,4.8]
[1756947220312,7.82,211.55,211.52,4.8]
[1756947220811,0.0341981,211.56,211.52,4.8]
[1756947221007,7.82,211.55,211.52,4.8]
[1756947221309,0.0341981,211.56,211.52,4.8]
[1756947221514,7.82,211.55,211.52,4.8]
[1756947221910,0.0341981,211.56,211.52,4.8]
[1756947222616,7.65,211.55,211.52,4.8]
[1756947222811,0.0341981,211.56,211.52,4.8]
[1756947223224,7.65,211.55,211.52,4.8]
[1756947224017,0.0341981,211.56,211.52,4.8]
[1756947224217,7.65,211.55,211.52,4.8]
[1756947225113,0.0341981,211.56,211.51,1.57907588]
[1756947225414,7.6841981,211.56,211.51,0.03333089]
[1756947225818,7.6841981,211.56,211.52,4.81]
[1756947226014,7.6841981,211.56,211.51,0.03333089]
[1756947226318,7.6841981,211.56,211.52,4.81]
[1756947226319,7.65,211.55,211.52,4.81]
[1756947227021,0.0341981,211.56,211.51,0.03333089]
[1756947227220,0.0341981,211.56,211.51,4.84333089]
[1756947228121,7.65,211.55,211.52,4.81]
[1756947228621,0.0341981,211.56,211.52,4.81]
[1756947229220,7.65,211.55,211.52,4.81]
[1756947230821,0.0341981,211.56,211.52,4.81]
[1756947231021,7.65,211.55,211.52,4.81]
[1756947232017,7.6841981,211.56,211.52,4.81]
[1756947232421,7.6841981,211.56,211.51,0.03333089]
[1756947232922,0.0341981,211.56,211.52,4.81]
[1756947233322,7.6841981,211.56,211.51,0.03333089]
[1756947233921,7.6841981,211.56,211.52,4.81]
[1756947234122,7.6841981,211.56,211.51,0.03333089]
[1756947234521,7.65,211.55,211.52,4.81]
[1756947234722,0.0341981,211.56,211.51,4.84333089]
[1756947235023,7.65,211.55,211.51,4.84333089]
[1756947235723,0.0341981,211.56,211.51,4.84333089]
[1756947235924,0.0341981,211.56,211.51,0.03333089]
[1756947236326,7.65,211.55,211.51,0.03333089]
[1756947236520,7.65,211.55,211.51,4.84333089]
[1756947236721,0.0341981,211.56,211.51,4.84333089]
[1756947237119,7.65,211.55,211.51,4.84333089]
[1756947237926,0.0341981,211.56,211.51,4.84333089]
[1756947238129,7.65,211.55,211.51,4.84333089]
[1756947238426,7.65,211.55,211.52,4.81]
[1756947238626,0.0341981,211.56,211.52,4.81]
[1756947238826,7.65,211.55,211.51,4.84333089]
[1756947239027,7.65,211.55,211.51,0.03333089]
[1756947239228,7.65,211.55,211.52,4.81]
[1756947239733,0.0341981,211.56,211.52,4.81]
[1756947239923,7.65,211.55,211.51,0.03333089]
[1756947241919,12.95853452,211.55,211.51,0.03333089]
[1756947242325,5.30853452,211.54,211.51,0.03333089]
[1756947242526,7.65,211.53,211.51,0.03333089]
[1756947242928,7.65,211.52,211.51,0.03333089]
[1756947243128,40.9941981,211.56,211.52,4.81]
[1756947243526,40.9941981,211.56,211.51,4.84333089]
[1756947244032,0.0341981,211.56,211.51,4.84333089]
[1756947244228,7.65,211.55,211.51,4.84333089]
[1756947244429,7.65,211.55,211.52,4.81]
[1756947244628,0.0341981,211.56,211.52,4.81]
[1756947245029,7.65,211.55,211.52,4.81]
[1756947245229,0.0341981,211.56,211.52,4.81]
[1756947245532,7.65,211.55,211.51,0.03333089]